Cogmind - Beta 14 *** ADVENTURER MODE // 2024.08.08 @ 00:51:43 Player: Plaidstone Result: Destroyed by Shrapnel Trap Performance ------------- Evolutions (0) 0 Regions Visited (3) 600 Robots Destroyed (36) 180 Value Destroyed (887) 887 Prototype IDs (6) 120 Alien Tech Used (0) 0 Bonus (-30) -30 TOTAL SCORE: 1757 Bonus ------- Friendly Fire -30 Cogmind --------- Core Integrity 0/250 Matter 285/300 Energy 148/150 System Corruption 0% Temperature Cool (1) Movement Treading (240) Ox1 Location -10/Subcaves Parts ------- > --- POWER (1) -------- Light Angular Momentum Engine > --- PROPULSION (2) --- Light Treads > --- UTILITY (2) ------ Large Storage Unit Structural Scanner > --- WEAPON (2) ------- Beamcaster Battle Cannon > --- INVENTORY (15) --- Heat Sink Improved Heat Sink Improved Heat Sink Large Matter Pod (150) Weight Redist. System Sensor Array Weapon Shielding Light Armor Plating Battle Rifle Battle Rifle Battle Rifle Rocket Launcher Mining Laser Peak State ------------ > --- POWER ------------ Light Angular Momentum Engine > --- PROPULSION ------- Light Treads > --- UTILITY ---------- Large Storage Unit Structural Scanner > --- WEAPON ----------- Beamcaster Battle Cannon > --- INVENTORY -------- Light Treads Heat Sink Improved Heat Sink Improved Heat Sink Large Matter Pod Weight Redist. System Sensor Array Weapon Shielding Light Armor Plating Battle Rifle Battle Rifle Rocket Launcher Mining Laser [Rating: 17] Favorites ----------- Power Light Angular Momentum Engine Engine Light Angular Momentum Engine Propulsion Light Treads Treads Light Treads Wheel Compact Wheel Utility Large Storage Unit Device Structural Scanner Storage Large Storage Unit Processor Signal Interpreter Weapon EM Pulse Gun Energy Gun EM Pulse Gun Ballistic Gun Light Assault Rifle Ballistic Cannon Battle Cannon Launcher Rocket Launcher Special Weapon Mining Laser Build | -11 -10 -10 -10 ------- Run | Yrd Mat Min Sub Slots Evolved . | . . . . Power . | . . . . Propulsion . | . . . . Utility . | . . . . Weapon . | . . . . Parts Attached 47 | 5 24 4 14 Power 5 | 1 3 . 1 Engine 5 | 1 3 . 1 Core . | . . . . Reactor . | . . . . Propulsion 11 | 2 8 . 1 Treads 3 | . 2 . 1 Leg . | . . . . Wheel 8 | 2 6 . . Hover . | . . . . Flight . | . . . . Utility 11 | 1 7 2 1 Device 6 | . 4 1 1 Storage 4 | 1 3 . . Processor 1 | . . 1 . Hackware . | . . . . Protection . | . . . . Artifact . | . . . . Weapon 20 | 1 6 2 11 Energy Gun 13 | 1 5 1 6 Energy Cannon . | . . . . Ballistic Gun 1 | . 1 . . Ballistic Cannon 1 | . . . 1 Launcher 2 | . . . 2 Special Weapon 3 | . . 1 2 Impact Weapon . | . . . . Slashing Weapon . | . . . . Piercing Weapon . | . . . . Special Melee Weapon . | . . . . Unidentified Prototypes . | . . . . Parts Lost 8 | . 3 . 5 Power . | . . . . Propulsion 4 | . 2 . 2 Utility . | . . . . Weapon 4 | . 1 . 3 Highest Loss Streak 3 | . 3 . 2 To Critical Strikes . | . . . . Average Slot Usage (%) 94 | . 95 100 93 Engine 13 | . 13 14 14 Treads 21 | . 16 28 21 Wheel 2 | . 10 . . Device 9 | . 12 10 7 Storage 14 | . 14 14 14 Processor 4 | . . 3 6 Energy Gun 22 | . 25 27 20 Ballistic Cannon 2 | . . . 4 Special Weapon 1 | . . . 2 Peak Build Rating 17 | 5 8 8 17 Average Rating 11 | 3 7 8 14 On Entrance 5 | . 5 8 8 Naked Turns . | . . . . Heaviest Build 38 | 10 30 30 38 Greatest Support 40 | 26 40 40 40 Greatest Overweight (x) 8 | . 8 . 1 Average Overweight (x) . | . . . . Largest Inventory Capacity 15 | 8 15 15 15 Average Capacity 14 | 6 14 15 15 Most Carried 15 | 6 15 15 15 Average Carried 14 | 3 13 14 14 Final Capacity 15 | 8 15 15 15 Final Carried 15 | 5 15 15 13 Class Distribution -------------------- 98% | Mutant Dominant Class ---------------- Mutant | -10/Materials Mutant | -10/Mines Mutant | -10/Subcaves Resources | -11 -10 -10 -10 ----------- Run | Yrd Mat Min Sub Matter Collected 1002 | 214 446 180 162 Remotely . | . . . . Salvage Created 1292 | . 753 239 300 Parts 66 | . 36 15 15 Haulers Intercepted 2 | . 2 . . Recyclers Shooed 5 | . 5 . . Parts Field Recycled . | . . . . Retrieved Matter . | . . . . Parts Self-Destructed 13 | . . . 13 Prevented . | . . . . Kills | -11 -10 -10 -10 ------- Run | Yrd Mat Min Sub Combat Hostiles Destroyed 24 | . 8 6 10 Guns 18 | . 8 5 5 AOE 6 | . . 1 5 Classes Destroyed 9 | . 6 1 2 Worker 2 | . 2 . . Tunneler 1 | . . 1 . Hauler 2 | . 2 . . Recycler 3 | . 3 . . Turret 1 | . . . 1 Watcher 3 | . 3 . . Swarmer 7 | . 3 2 2 Grunt 9 | . 5 4 . Subdweller 8 | . . . 8 Best Kill Streak 9 | . 9 2 4 Combat Bots Only 4 | . 4 2 4 Max Kills in Single Turn 3 | . 1 1 3 Gunslinging . | . . . . Exploded 3 | . . 1 3 Melee . | . . . . Uniques/NPCs Destroyed . | . . . . Combat | -11 -10 -10 -10 -------- Run | Yrd Mat Min Sub Hostile Shots Fired 116 | . 41 25 50 Missed 33 | . 7 9 17 Damage Taken 1088 | . 349 155 584 Core 265 | . 114 28 123 Absorbed by Shields . | . . . . Ignored by Resistances 312 | . 107 50 155 Regen/Repaired (Parts) 77 | . 77 . . Core Remaining (%) 100 | 100 . . . Volleys Fired 151 | . 61 17 73 Largest 2 | . 2 2 2 Hottest 140 | . 80 140 140 Shots Fired 237 | . 112 34 91 Gun 186 | . 112 33 41 Cannon 1 | . . . 1 Launcher 3 | . . . 3 Special 47 | . . 1 46 Kinetic 31 | . 30 . 1 Thermal 108 | . 54 1 53 Explosive 3 | . . . 3 Electromagnetic 95 | . 28 33 34 Robot Hit Streak 15 | . 15 9 10 Robot Miss Streak 4 | . 4 2 2 Penetration Max . | . . . . Secondary Targets 4 | . 2 . 2 Max Gunslinging Chain 1 | . 1 . 1 Shots Hit Robots 139 | . 85 23 31 Core Hits 63 | . 31 12 20 Critical Kills . | . . . . Critical Parts Destroyed . | . . . . Critical Strikes 1 | . . . 1 Burn 1 | . . . 1 Melee Attacks . | . . . . Impact . | . . . . Slashing . | . . . . Piercing . | . . . . Sneak Attacks . | . . . . Combat Hostiles . | . . . . Follow-up Attacks . | . . . . Damage Inflicted 2307 | . 954 349 1004 Guns 1626 | . 954 297 375 Cannons . | . . . . Explosions 677 | . . 48 629 Melee . | . . . . Ramming 4 | . . 4 . Kinetic 170 | . 170 . . Thermal 707 | . 523 48 136 Explosive 595 | . . . 595 Electromagnetic 831 | . 261 297 273 Impact . | . . . . Slashing . | . . . . Piercing . | . . . . Highest Corruption . | . . . . Average Corruption . | . . . . Corruption Purged . | . . . . Corruption Blocked . | . . . . Overload Shots . | . . . . Overflow Damage . | . . . . Projectiles . | . . . . Explosions . | . . . . Melee . | . . . . Knockbacks . | . . . . Impact . | . . . . Kinetic . | . . . . Secondary . | . . . . Self-Inflicted Damage 37 | . . . 37 Shots 2 | . . . 2 Rammed . | . . . . Targets Rammed 1 | . . 1 . Kicked . | . . . . Crushed 1 | . . 1 . Highest Temperature 406 | . 406 135 13 Average Temperature 91 | . 112 44 8 Received Heat Transfer 480 | . 258 96 126 Effects 3 | . 3 . . Shutdowns 1 | . 1 . . Interference 1 | . 1 . . Matter Decay 1 | . 1 . . Siege Activations . | . . . . Robots Corrupted 1 | . 1 . . Combat Hostiles . | . . . . Parts Fried 5 | . 4 1 . Impact Corruptions . | . . . . Robots Melted . | . . . . Combat Hostiles . | . . . . Parts Melted 6 | . 2 . 4 Heat Transferred 1721 | . 1412 50 259 Parts Sabotaged . | . . . . Parts Stolen . | . . . . Parts Stripped . | . . . . Power Chain Reactions 2 | . . 1 1 Alert | -11 -10 -10 -10 ------- Run | Yrd Mat Min Sub Peak Influence 213 | . 213 156 . Initial 29 | . . 29 . Average 57 | . 63 52 . Maximum Alert Level 1 | . 1 . . Low Security (%) 94 | 100 90 100 . Level 1 5 | . 9 . . Level 2 . | . . . . Level 3 . | . . . . Level 4 . | . . . . Level 5 . | . . . . High Security . | . . . . Max Security . | . . . . Squads Dispatched . | . . . . Investigation . | . . . . Extermination . | . . . . Reinforcement . | . . . . Assault . | . . . . Garrison . | . . . . Intercept . | . . . . Searches Triggered . | . . . . Construction Impeded . | . . . . Haulers Reinforced . | . . . . Active Scanning Responses . | . . . . Cargo Convoy Interrupts . | . . . . Stealth | -11 -10 -10 -10 --------- Run | Yrd Mat Min Sub Distress Signals 1 | . 1 . . Communications Jammed . | . . . . Distress Signals . | . . . . Times Spotted 60 | . 21 7 32 Peak Tracking Total 8 | . 3 3 8 Tactical Retreats 5 | . 3 . 2 Traps | -11 -10 -10 -10 ------- Run | Yrd Mat Min Sub Traps Triggered 6 | . 3 . 3 Indirectly . | . . . . Trap Hack Attempts . | . . . . Triggered . | . . . . Disarmed . | . . . . Reprogrammed . | . . . . Reused . | . . . . Traps Extracted . | . . . . Installed . | . . . . Triggered . | . . . . Machines | -11 -10 -10 -10 ---------- Run | Yrd Mat Min Sub Machines Disabled 3 | . . 3 . Max in Single Turn 1 | . . 1 . Machines Repaired . | . . . . Machines Dismantled . | . . . . Machines Sabotaged . | . . . . Overloaded Fab Kills . | . . . . Hacking | -11 -10 -10 -10 --------- Run | Yrd Mat Min Sub Machines Accessed 10 | . 10 . . Terminals 8 | . 8 . . Fabricators . | . . . . Repair Stations 1 | . 1 . . Recycling Units 1 | . 1 . . Scanalyzers . | . . . . Garrison Access . | . . . . Total Hacks 29 | . 29 . . Successful 22 | . 22 . . Failed 7 | . 7 . . Catastrophic 2 | . 2 . . Database Lockouts . | . . . . Manual 1 | . 1 . . Terminals 25 | . 25 . . Fabricators . | . . . . Repair Stations 3 | . 3 . . Recycling Units 1 | . 1 . . Scanalyzers . | . . . . Garrison Access . | . . . . Terminal Hacks 19 | . 19 . . Prototype ID Bank 4 | . 4 . . Branch Access Points 1 | . 1 . . Emergency Access Points 1 | . 1 . . Repair Station Index 1 | . 1 . . Alert Level 4 | . 4 . . Locate Traps 3 | . 3 . . Security Status 2 | . 2 . . Patrol Status 1 | . 1 . . Reinforcement Status 1 | . 1 . . Registered Prototypes 1 | . 1 . . Fabricator Hacks . | . . . . Repair Station Hacks 2 | . 2 . . Scan Component 1 | . 1 . . Repair 1 | . 1 . . Recycling Unit Hacks 1 | . 1 . . Report Inventory 1 | . 1 . . Scanalyzer . | . . . . Garrison Access Hacks . | . . . . Unauthorized Hacks . | . . . . Terminals . | . . . . Fabricators . | . . . . Repair Stations . | . . . . Recycling Units . | . . . . Scanalyzers . | . . . . Garrison Access . | . . . . Data Cores Recovered . | . . . . Used . | . . . . Hacking Detections 8 | . 8 . . Full Trace Events 1 | . 1 . . Feedback Events . | . . . . Feedback Blocked . | . . . . Robot Schematics Acquired . | . . . . Robots Built . | . . . . Authchips . | . . . . Time . | . . . . Total Robot Build Rating . | . . . . Part Schematics Acquired . | . . . . Parts Built . | . . . . Authchips . | . . . . Time . | . . . . Total Part Build Rating . | . . . . Parts Repaired 1 | . 1 . . Time 26 | . 26 . . Parts Recycled . | . . . . Recycled Matter . | . . . . Retrieved Matter . | . . . . Retrieved Components . | . . . . Parts Scanalyzed . | . . . . Part Schematics Acquired . | . . . . Parts Damaged . | . . . . Bothacking | -11 -10 -10 -10 ------------ Run | Yrd Mat Min Sub Used RIF Installer . | . . . . Robots Hacked . | . . . . Non-combat . | . . . . Combat . | . . . . Robot Hacks Applied . | . . . . Relay Couplers Released . | . . . . Fabnet Peak Effective % . | . . . . Robots Rewired . | . . . . Allies Hacked . | . . . . Hacks Repelled . | . . . . Allies | -11 -10 -10 -10 -------- Run | Yrd Mat Min Sub Total Allies 1 | . . 1 . Largest Group 1 | . . 1 . Highest-Rated Group 31 | . . 31 . Highest-Rated Ally 31 | . . 31 . Total Orders . | . . . . Ally Attacks . | . . . . Total Damage . | . . . . Kills . | . . . . Allies Corrupted . | . . . . Allies Melted . | . . . . Intel | -11 -10 -10 -10 ------- Run | Yrd Mat Min Sub Robot Analysis Total . | . . . . Derelict Logs Recovered 4 | . . 3 1 Drone Launches . | . . . . Drone Recoveries . | . . . . Exploration | -11 -10 -10 -10 ------------- Run | Yrd Mat Min Sub Turns Passed 7121 | 49 1533 1236 4303 Spaces Moved 3115 | 42 860 693 1520 Core 14 | 9 5 . . Treads 2703 | . 490 693 1520 Legs . | . . . . Wheels 398 | 33 365 . . Hover . | . . . . Flight . | . . . . Fastest Speed 50 | 50 90 160 160 Average Speed 168 | 81 135 160 193 Slowest Speed 450 | 90 450 160 240 Overloaded Moves . | . . . . Propulsion Burnouts . | . . . . Robots Hopped . | . . . . Cave-ins Triggered . | . . . . Exploration Rate (%) 69 | 3 100 96 77 Regions Visited 3 Branch Regions 2 Pre-discovered Areas 3 | . . 2 1 Known Exits Taken 2 | . 1 1 . Unknown Exits Taken 1 | 1 . . . Scrap Searched 7 | . . 1 6 Spaces Dug 8 | . . . 8 Terrain Destroyed 37 | . . 3 34 Melee . | . . . . Projectile . | . . . . AOE 37 | . . 3 34 Terrain Rammed . | . . . . Walls Destroyed . | . . . . Machines Disabled . | . . . . Actions | -11 -10 -10 -10 --------- Run | Yrd Mat Min Sub Total 4661 | 56 1126 783 2696 Wait 1260 | . 130 65 1065 Move 3112 | 41 859 692 1520 Hop . | . . . . Pick Up 58 | 10 34 2 12 Fast Attach 2 | . 2 . . Attach 25 | 5 15 . 5 Detach 2 | . 1 . 1 Swap 20 | . 7 4 9 Drop 29 | . 17 2 10 Fire 151 | . 61 17 73 Melee . | . . . . Ram . | . . . . Kick . | . . . . Crush 1 | . . 1 . Escape Stasis . | . . . . Rewire 1 | . . . 1 Trap . | . . . . Miscellaneous . | . . . . Route ------- -11/Scrapyard -10/Materials (discovered 5 exits: *Mat x3 / *Min / *Sub) -10/Mines (discovered 4 exits: *Mat x2 / *Exi / *Sub) -10/Subcaves (discovered 3 exits: [*Mat x2] / [*Rec]) History --------- Turn | Location | Event 8 | -11/Scrapyard | Discovered new exit (range 16) 50 | -11/Scrapyard | Entered Materials 195 | -10/Materials | Discovered new exit (range 8) 225 | -10/Materials | Identified exit to Mines 328 | -10/Materials | Lost 3 parts (2n1w) 339 | -10/Materials | Build established: Mutant 400 | -10/Materials | Discovered new exit (range 16) 543 | -10/Materials | Repaired Lgt. Treads 928 | -10/Materials | Discovered new exit (range 15) 1190 | -10/Materials | Discovered new exit (range 12) 1441 | -10/Materials | Discovered new exit (range 14) 1583 | -10/Materials | Entered Mines 1592 | -10/Mines | Core integrity fell below 50% 1690 | -10/Mines | Received a Rocket Launcher from a helpful Derelict 1811 | -10/Mines | Discovered new exit (range 16) 1814 | -10/Mines | Received a Mining Laser from a helpful Derelict 2155 | -10/Mines | Discovered new exit (range 16) 2265 | -10/Mines | Learned location of Zion (-7) 2431 | -10/Mines | Discovered new exit (range 4) 2487 | -10/Mines | Identified exit to Exiles 2574 | -10/Mines | Deemed a non-threat by the Exiles lab entrance 2699 | -10/Mines | Identified exit to Materials 2800 | -10/Mines | Discovered new exit (range 13) 2818 | -10/Mines | Identified exit to Subcaves 2819 | -10/Mines | Entered Subcaves 2894 | -10/Subcaves | Ambushed by swarm of Subdwellers 2897 | -10/Subcaves | Ambushed by Subdwellers from Twisted Machinery 2898 | -10/Subcaves | Ambushed by Subdwellers from Twisted Machinery 2962 | -10/Subcaves | Discovered new exit (range 15) 3235 | -10/Subcaves | Curiously followed by a Cobbler waking with a query about "LVR3C" 4425 | -10/Subcaves | Shifting Twisted Machinery released Sub. Beam Cannon 4451 | -10/Subcaves | Shifting Twisted Machinery released Sub. Laser 4518 | -10/Subcaves | A swath of the cavern ceiling suddenly collapsed 5197 | -10/Subcaves | Learned location of Recycling (-9) 5216 | -10/Subcaves | Ambushed by Subdwellers from Twisted Machinery 5272 | -10/Subcaves | Shifting Twisted Machinery released Sub. Monowheel 5402 | -10/Subcaves | Shifting Twisted Machinery released Sub. Laser 5403 | -10/Subcaves | Discovered new exit (range 15) 5596 | -10/Subcaves | Disturbed a concealed Subdweller 5601 | -10/Subcaves | Disturbed a concealed Subdweller 6198 | -10/Subcaves | Discovered new exit (range 10) 6336 | -10/Subcaves | A swath of the cavern ceiling suddenly collapsed 6457 | -10/Subcaves | Core integrity fell below 20% 7122 | -10/Subcaves | Destroyed by Shrapnel Trap Last Messages --------------- 06198_ EXIT=FOUND A swath of the cavern ceiling suddenly collapses. 06414_ Attempting to rewire 5Y-MU3(R). 06414_ 5Y-MU3(R) is broken beyond repair. 06456_ Triggered Piercing Trap. 06456_ Spikes shoot up from the floor. 06456_ Critical hit (Impale). 06653_ CR-U1D(u) tweaks Twisted Machinery. 06655_ Triggered Shrapnel Trap. 06655_ An expanding cloud of shrapnel blasts out in all directions. 06655_ Lgt. Treads destroyed. 06658_ CR-U1D(u) tweaks Twisted Machinery. 06737_ DI-QRQ(g) triggered Piercing Trap. 06737_ Spikes shoot up from the floor. 06737_ DI-QRQ(g) suffers critical hit (Impale). 07122_ Triggered Shrapnel Trap. 07122_ An expanding cloud of shrapnel blasts out in all directions. Map ----- +----------------------------------------------------+ | ??????????????????????## ## " # ##### | | ??????????????????????## # #### ##### | | ??????????????????????## ### #### ##### | | ??????????????????????## ##### #### | | ?????????????????????### ###### < ### | | ?????????????????????## ##### ## | | ?????????????????????###"###?## ## ## | | ?????????????????????###"######### ### ## | | ??????????????????????"""######### ### ### | | ???????????????????????"" ##"#" #### ##### | | ???????????????????????" """"" #### # # | | ??????????????????????? """"" ##### | | ???????????????????????? #### # # ##### | | ???????????????????????? #############?### ## | | ???????????????????????????###########?## # ## | | ???????????????????????????????????????### # ### | | ??????????????????????????????????????### ## ## | | ?????????????????????????????????######## ## ## | | ?????????????????????????############### # ### | | ???????????????????????############;#### ## ### | | ???????????????????????#### """ ;;; ;### ### | | ???????????????????????##""""""" ;; ^ ^ | | ??????????????????????#### " g ## | | ?????????????????????##### " ^O #### ## | | ?????????????????????### ## ### ^### | | ????????????????????### @ ###" ^ ## # | | ???????????????????### ## ####### ### | | ???????????????????## ############### ## | | ???????????????????####?######???##### ^ ### | | ???????????????????####?????????????## #### | | ????????????????????????????????????### ###### | | ????????????????????????????????????### ####### | | ????????????????????????????????????### ### ## | | ????????????????????????????????????### ## # | | ????????????????????????????????????## ## | | ????????????????????????????????????### #### | | ???????????????????????????????????#### #### | | ??????????????????????????????????#### ### | | ??????????????????????????????????### ## | | ????????????????????????????????#### | | ????????????????????????????????#### ## | | ??????????????????????????????#### #### | | ????????????????????????????###### ######## | | ????????????????????????????#### ## ####### | | ????????????????????????????## ### ###??? | | ????????????????????????????## ####### ##??? | | ????????????????????????????########## ###??? | | ????????????????????????????######??## ####??? | | ????????????????????????????????????## ####???? | | ????????????????????????????????????### ###????? | +----------------------------------------------------+ Best States ------------- Heat Dissipation 25 Energy Generation 18 Energy Capacity 250 Matter Stores 300 Matter Capacity 300 Sight Range 16 Robot Scan Range 14 Terrain Scan Density 10 Resistance: KI 20 Resistance: TH 20 Resistance: EX 20 Resistance: EM 20 Resistance: I 20 Resistance: S 20 Resistance: P 20 Evasion (%) 50 Recoil Reduction 2 Offensive Hacking 10 Item Schematics ----------------- None Robot Schematics ------------------ None Fabricated ------------ Nothing Alien Tech Used ----------------- None Achievements -------------- None Challenges ------------ None Game ------ Seed MicroMicroDriver Manual? 0 Play Time 00:45:05 Cumulative 31.7 hours Start 2024.08.08 @ 00:07:44 End 2024.08.08 @ 00:51:43 Sessions 1 Manual Loads 0 Difficulty Adventurer Special Mode None Game No. 25 Rogue 18 Adventurer 7 Explorer 0 Win Type - Total 0 Types 0/0/0/0/0/0/0/0/0 Lore% 12 Gallery% 22 Achievement% 20 Wizard Run 0 Options --------- Layout 1 ASCII 0 Keyboard 0 Movement Mouse Keybinds 0 Fullscreen 1 Font 24/Smallcaps Map View 50x35 Zoom Use 0% Tactical HUD 1 Map Filters NONE Filters NONE Steam 1 RUN: 9fdc25c0-73e1-4934-9f91-21ad60d8fe71